Cogmind - Beta 13 @@@ ROGUE MODE // 2024.05.04 @ 11:55:31 Player: ToasterKoishi Result: Destroyed by S-10 Pest with Light Assault Rifle Performance ------------- Evolutions (0) 0 Regions Visited (1) 200 Robots Destroyed (0) 0 Value Destroyed (0) 0 Prototype IDs (0) 0 Alien Tech Used (0) 0 Bonus (0) 0 TOTAL SCORE: 200 Bonus ------- None Cogmind --------- Core Integrity 0/250 Matter 253/300 Energy 98/100 System Corruption 0% Temperature Cool (0) Movement Core (50) Location -10/Materials Parts ------- > --- POWER (1) -------- (None) > --- PROPULSION (2) --- (None) > --- UTILITY (2) ------ (None) > --- WEAPON (2) ------- (None) > --- INVENTORY (5) ---- Ion Engine Small Storage Unit Peak State ------------ None Favorites ----------- Power None Propulsion None Utility None Weapon None Build | -11 -10 ------- Run | Yrd Mat Slots Evolved . | . . Power . | . . Propulsion . | . . Utility . | . . Weapon . | . . Parts Attached . | . . Power . | . . Engine . | . . Core . | . . Reactor . | . . Propulsion . | . . Treads . | . . Leg . | . . Wheel . | . . Hover . | . . Flight . | . . Utility . | . . Device . | . . Storage . | . . Processor . | . . Hackware . | . . Protection . | . . Artifact . | . . Weapon . | . . Energy Gun . | . . Energy Cannon . | . . Ballistic Gun . | . . Ballistic Cannon . | . . Launcher . | . . Special Weapon . | . . Impact Weapon . | . . Slashing Weapon . | . . Piercing Weapon . | . . Special Melee Weapon . | . . Unidentified Prototypes . | . . Parts Lost . | . . Power . | . . Propulsion . | . . Utility . | . . Weapon . | . . Highest Loss Streak . | . . To Critical Strikes . | . . Average Slot Usage (%) . | . . Naked Turns 66 | . 66 Heaviest Build . | . . Greatest Support 3 | 3 3 Greatest Overweight (x) . | . . Average Overweight (x) . | . . Largest Inventory Capacity 5 | 5 5 Average Capacity 5 | 5 5 Most Carried 2 | 2 2 Average Carried 1 | 1 2 Final Capacity 5 | 5 5 Final Carried 2 | 2 2 Class Distribution -------------------- 100% | Mutant Dominant Class ---------------- Mutant | -10/Materials Resources | -11 -10 ----------- Run | Yrd Mat Matter Collected 143 | 143 . Remotely . | . . Salvage Created . | . . Parts . | . . Haulers Intercepted . | . . Recyclers Shooed . | . . Parts Field Recycled . | . . Retrieved Matter . | . . Parts Self-Destructed . | . . Prevented . | . . Kills | -11 -10 ------- Run | Yrd Mat Combat Hostiles Destroyed . | . . Classes Destroyed . | . . Best Kill Streak . | . . Combat Bots Only . | . . Max Kills in Single Turn . | . . Gunslinging . | . . Exploded . | . . Melee . | . . Uniques/NPCs Destroyed . | . . Combat | -11 -10 -------- Run | Yrd Mat Hostile Shots Fired 54 | . 54 Missed 24 | . 24 Damage Taken 253 | . 253 Core 253 | . 253 Absorbed by Shields . | . . Core Remaining (%) 100 | 100 . Volleys Fired . | . . Largest . | . . Hottest . | . . Shots Fired . | . . Gun . | . . Cannon . | . . Launcher . | . . Special . | . . Kinetic . | . . Thermal . | . . Explosive . | . . Electromagnetic . | . . Robot Hit Streak . | . . Robot Miss Streak . | . . Penetration Max . | . . Secondary Targets . | . . Shots Hit Robots . | . . Core Hits . | . . Critical Kills . | . . Critical Parts Destroyed . | . . Critical Strikes . | . . Melee Attacks . | . . Impact . | . . Slashing . | . . Piercing . | . . Sneak Attacks . | . . Combat Hostiles . | . . Follow-up Attacks . | . . Damage Inflicted 2 | . 2 Guns . | . . Cannons . | . . Explosions . | . . Melee . | . . Ramming 2 | . 2 Kinetic . | . . Thermal . | . . Explosive . | . . Electromagnetic . | . . Impact . | . . Slashing . | . . Piercing . | . . Highest Corruption . | . . Average Corruption . | . . Corruption Purged . | . . Corruption Blocked . | . . Overload Shots . | . . Overflow Damage . | . . Projectiles . | . . Explosions . | . . Melee . | . . Knockbacks . | . . Impact . | . . Kinetic . | . . Secondary . | . . Self-Inflicted Damage 1 | . 1 Shots . | . . Rammed 3 | . 3 Targets Rammed 3 | . 3 Kicked . | . . Crushed . | . . Highest Temperature 2 | . 2 Average Temperature 2 | . 2 Received Heat Transfer 27 | . 27 Siege Activations . | . . Robots Corrupted . | . . Combat Hostiles . | . . Parts Fried . | . . Impact Corruptions . | . . Robots Melted . | . . Combat Hostiles . | . . Parts Melted . | . . Heat Transferred . | . . Parts Sabotaged . | . . Parts Stolen . | . . Parts Stripped . | . . Power Chain Reactions . | . . Alert | -11 -10 ------- Run | Yrd Mat Peak Influence 120 | . 120 Initial . | . . Average 38 | . 47 Maximum Alert Level . | . . Low Security (%) 100 | 100 100 Level 1 . | . . Level 2 . | . . Level 3 . | . . Level 4 . | . . Level 5 . | . . High Security . | . . Max Security . | . . Squads Dispatched 1 | . 1 Investigation . | . . Extermination . | . . Reinforcement 1 | . 1 Assault . | . . Garrison . | . . Intercept . | . . Searches Triggered . | . . Construction Impeded . | . . Haulers Reinforced . | . . Active Scanning Responses . | . . Cargo Convoy Interrupts . | . . Stealth | -11 -10 --------- Run | Yrd Mat Distress Signals 1 | . 1 Communications Jammed . | . . Distress Signals . | . . Times Spotted 13 | . 13 Peak Tracking Total 9 | . 9 Tactical Retreats 2 | . 2 Traps | -11 -10 ------- Run | Yrd Mat Traps Triggered . | . . Indirectly . | . . Trap Hack Attempts . | . . Triggered . | . . Disarmed . | . . Reprogrammed . | . . Reused . | . . Traps Extracted . | . . Installed . | . . Triggered . | . . Machines | -11 -10 ---------- Run | Yrd Mat Machines Disabled . | . . Max in Single Turn . | . . Machines Repaired . | . . Machines Dismantled . | . . Machines Sabotaged . | . . Overloaded Fab Kills . | . . Hacking | -11 -10 --------- Run | Yrd Mat Machines Accessed 1 | . 1 Terminals 1 | . 1 Fabricators . | . . Repair Stations . | . . Recycling Units . | . . Scanalyzers . | . . Garrison Access . | . . Total Hacks 1 | . 1 Successful . | . . Failed 1 | . 1 Catastrophic . | . . Database Lockouts . | . . Manual 1 | . 1 Terminals 1 | . 1 Fabricators . | . . Repair Stations . | . . Recycling Units . | . . Scanalyzers . | . . Garrison Access . | . . Terminal Hacks . | . . Fabricator Hacks . | . . Repair Station Hacks . | . . Recycling Unit Hacks . | . . Scanalyzer . | . . Garrison Access Hacks . | . . Unauthorized Hacks . | . . Terminals . | . . Fabricators . | . . Repair Stations . | . . Recycling Units . | . . Scanalyzers . | . . Garrison Access . | . . Data Cores Recovered . | . . Used . | . . Hacking Detections 1 | . 1 Full Trace Events . | . . Feedback Events . | . . Feedback Blocked . | . . Robot Schematics Acquired . | . . Robots Built . | . . Authchips . | . . Time . | . . Total Robot Build Rating . | . . Part Schematics Acquired . | . . Parts Built . | . . Authchips . | . . Time . | . . Total Part Build Rating . | . . Parts Repaired . | . . Time . | . . Parts Recycled . | . . Recycled Matter . | . . Retrieved Matter . | . . Retrieved Components . | . . Parts Scanalyzed . | . . Part Schematics Acquired . | . . Parts Damaged . | . . Bothacking | -11 -10 ------------ Run | Yrd Mat Used RIF Installer . | . . Robots Hacked . | . . Non-combat . | . . Combat . | . . Robot Hacks Applied . | . . Relay Couplers Released . | . . Fabnet Peak Effective % . | . . Robots Rewired . | . . Allies Hacked . | . . Hacks Repelled . | . . Allies | -11 -10 -------- Run | Yrd Mat Total Allies . | . . Largest Group . | . . Highest-Rated Group . | . . Highest-Rated Ally . | . . Total Orders . | . . Ally Attacks . | . . Total Damage . | . . Kills . | . . Allies Corrupted . | . . Allies Melted . | . . Intel | -11 -10 ------- Run | Yrd Mat Robot Analysis Total . | . . Derelict Logs Recovered . | . . Drone Launches . | . . Drone Recoveries . | . . Exploration | -11 -10 ------------- Run | Yrd Mat Turns Passed 81 | 15 66 Spaces Moved 152 | 26 126 Core 152 | 26 126 Treads . | . . Legs . | . . Wheels . | . . Hover . | . . Flight . | . . Fastest Speed 50 | 50 50 Average Speed 50 | 50 50 Slowest Speed 50 | 50 50 Overloaded Moves . | . . Propulsion Burnouts . | . . Robots Hopped . | . . Cave-ins Triggered . | . . Exploration Rate (%) 22 | 3 42 Regions Visited 1 Branch Regions . Pre-discovered Areas . | . . Known Exits Taken . | . . Unknown Exits Taken 1 | 1 . Scrap Searched . | . . Spaces Dug . | . . Terrain Destroyed . | . . Melee . | . . Projectile . | . . AOE . | . . Terrain Rammed . | . . Walls Destroyed . | . . Machines Disabled . | . . Actions | -11 -10 --------- Run | Yrd Mat Total 156 | 27 129 Wait . | . . Move 151 | 25 126 Hop . | . . Pick Up 2 | 2 . Fast Attach . | . . Attach . | . . Detach . | . . Swap . | . . Drop . | . . Fire . | . . Melee . | . . Ram 3 | . 3 Kick . | . . Crush . | . . Escape Stasis . | . . Rewire . | . . Trap . | . . Miscellaneous . | . . Route ------- -11/Scrapyard -10/Materials (discovered 2 exits: [*Mat] / [*Min]) History --------- Turn | Location | Event 6 | -11/Scrapyard | Discovered new exit (range 15) 16 | -11/Scrapyard | Entered Materials 50 | -10/Materials | Discovered new exit (range 12) 51 | -10/Materials | Core integrity fell below 50% 73 | -10/Materials | Core integrity fell below 20% 76 | -10/Materials | Discovered new exit (range 16) 82 | -10/Materials | Destroyed by S-10 Pest with Light Assault Rifle Last Messages --------------- LOCATION=UNKNOWN GOAL=ESCAPE 00016_ ALERT: A rogue bot has emerged from the scrapyard. Terminate on contact. 00031_ O-16 Technician sends out distress signal. 00031_ O-16 Technician: "IFF HANDSHAKE FAILED. SECURING TERMINAL." 00033_ K-01 Serf collects debris. 00035_ Slammed into S-10 Pest. 00036_ K-01 Serf collects debris. 00043_ Critical hit (Burn: +37). 00050_ EXIT=FOUND 00050_ ALERT: Hostiles spotted, dispatching reinforcements to Terminal M004. 00051_ Connecting with Terminal... 00051_ Current location identified: Materials 00070_ T-07 Excavator is excavating. 00072_ Slammed into S-10 Pest. 00076_ K-01 Serf collects debris. 00076_ EXIT=FOUND Map ----- +----------------------------------------------------+ | ?????????# #??# # | | ?????????# #??# # | | ?????????# #??# # | | ?????????# #???? ?# | | ?????????# #######/#### | | ?????????# + | | ????###### #### | | ????# ## #??# | | ????# #??# | | ????# ###### #####+####??? | | ????##s##????#####???????????? | | ?????# #?????????????????????? | | ?????# #?????????????????????? | | ?????# #?????????????????????? | | ?????# #?????????????????????? | | ???###s#?????????????????????? | | ???# ks#?????????????????????? | | ???#sk +?????????????????????? | | ???# #?????????????????????? | | ???# #?????????????????????? | | ???# #?????????????????????? | | ???# #?????????????????????? | | ???# #?????????????????????? | | ???# #?????????????????????? | | ???# #?????????????????????? | | ???# @ #?????????????????????? | | ???# +?????????????????????? | | ???# #?????????????????????? | | ???# < #?????????????????????? | | ???# #?????????????????????? | | ???#####?????????????????????? | | ?????????????????????????????? | | ?????????????????????????????? | | ?????????????????????????????? | | ?????????????????????????????? | | | | | | | | | | | | | | | | | | | | | | | | | | | | | | | +----------------------------------------------------+ Best States ------------- Heat Dissipation 25 Energy Generation 5 Energy Capacity 100 Matter Stores 253 Matter Capacity 300 Sight Range 16 Terrain Scan Density 10 Evasion (%) 50 Item Schematics ----------------- None Robot Schematics ------------------ None Fabricated ------------ Nothing Alien Tech Used ----------------- None Achievements -------------- None Challenges ------------ None Game ------ Seed VariableBombFilter Manual? 0 Play Time 00:03:17 Cumulative 87.5 hours Start 2024.05.04 @ 11:53:24 End 2024.05.04 @ 11:55:31 Sessions 1 Manual Loads 0 Difficulty Rogue Special Mode None Game No. 93 Rogue 93 Adventurer 0 Explorer 0 Win Type - Total 11 Types 10/0/1/0/0/0/0/0/0 Lore% 51 Gallery% 46 Achievement% 46 Wizard Run 0 Options --------- Layout 0 ASCII 0 Keyboard 1 Movement Vi Keybinds 0 Fullscreen 2 Font 16/SmallcapsGlow Map View 64x51 Zoom Use 0% Tactical HUD 1 Map Filters NONE Filters NONE Steam X RUN: e28728c8-ad3f-4264-afb3-b39ec1fa0282